bitfinex/quotes_ETHUSD_20250210
["timestamp","ask_amount","ask_price","bid_price","bid_amount"]
[1739186300600,3.77625,2648.2,2647.7,9.02678]
[1739186300799,3.77608,2648.3,2648.1,0.07851507]
[1739186301001,6.77581,2648.5,2647.9,5.96116287]
[1739186301206,3.77586,2648.4,2648.2,0.07848878]
[1739186301407,10.55164,2648.5,2647.9,5.96116287]
[1739186301606,10.55163,2648.5,2648.3,0.07846248]
[1739186301827,0.8243,2648.6,2647.9,2.18466287]
[1739186302040,4.59989,2648.6,2648.4,0.0784362]
[1739186302335,4.59987,2648.6,2648.5,0.07840991]
[1739186302624,4.59987,2648.6,2648.1,3.77619]
[1739186302823,4.59987,2648.6,2648.5,0.07840991]
[1739186302824,7.32557,2648.6,2648.5,0.07840991]
[1739186303023,7.32557,2648.6,2647.7,5.25]
[1739186303024,3.77672,2647.8,2647.7,5.25]
[1739186303225,3.77672,2647.8,2647.3,13.26826577]
[1739186303428,3.77672,2647.8,2647.7,0.07862026]
[1739186303727,3.77672,2647.8,2647.7,0.07945686]
[1739186303922,3.77672,2647.8,2647.3,13.26826577]
[1739186304314,3.77686,2647.7,2647.3,13.26826577]
[1739186304514,3.77672,2647.8,2647.3,17.04566577]
[1739186304720,3.77672,2647.8,2647.3,13.26826577]
[1739186305135,0.7972,2647.9,2647.4,3.77716]
[1739186305344,4.32572,2648.5,2647.4,3.77716]
[1739186305345,3.77651,2648.0,2647.6,2.18466287]
[1739186305625,0.7972,2648.2,2647.6,2.18466287]
[1739186305932,6.77635,2648.1,2647.6,5.96165287]
[1739186306425,3.0,2648.1,2647.6,5.96165287]
[1739186306727,0.74604518,2648.7,2647.7,3.77686]
[1739186306728,3.77612,2648.3,2647.7,3.77686]
[1739186306900,3.77612,2648.3,2647.7,3.81461958]
[1739186307323,4.5732,2648.4,2647.7,3.81461958]
[1739186307519,3.776,2648.3,2647.7,14.89822248]
[1739186307721,3.77617,2648.2,2647.7,14.8604629]
[1739186308042,3.77646,2648.0,2647.7,11.0836029]
[1739186308594,3.77617,2648.2,2647.7,14.8604629]
[1739186309700,3.77617,2648.2,2647.7,14.8603529]
[1739186310216,7.55239,2648.2,2647.7,14.8603529]
[1739186310601,3.77617,2648.2,2647.7,14.8603529]
[1739186312796,7.55241,2648.2,2647.7,14.8603529]
[1739186313099,3.77617,2648.2,2647.7,14.8603529]
[1739186313831,3.77617,2648.2,2647.8,0.07951739]
[1739186314030,3.77637,2648.1,2647.8,0.07951739]
[1739186314224,3.77637,2648.1,2647.7,11.0836029]
[1739186314534,3.77637,2648.1,2647.8,0.07951739]
[1739186314735,3.77637,2648.1,2647.7,11.0836029]
[1739186314934,3.77637,2648.1,2647.9,0.07949109]
[1739186315243,3.77637,2648.1,2647.7,14.8604629]
[1739186315404,3.77637,2648.1,2648.0,0.07946479]
[1739186315605,3.77601,2648.3,2647.7,14.8604629]
[1739186315934,7.55214,2648.3,2647.8,3.77659]
[1739186316144,3.77617,2648.2,2647.8,0.07951739]
[1739186316337,3.77629,2648.1,2647.7,11.0836029]
[1739186316540,3.77643,2648.0,2647.9,0.07949109]
[1739186316728,3.77643,2648.0,2647.7,11.0836029]
[1739186316917,3.77643,2648.0,2647.9,0.07949109]
[1739186317102,3.77643,2648.0,2647.7,11.0836029]
[1739186317305,3.77643,2648.0,2647.9,0.07949109]
[1739186317506,3.77643,2648.0,2647.7,11.0836029]
[1739186317706,3.77643,2648.0,2647.9,0.07949109]
[1739186317918,3.77611,2648.3,2647.7,11.0836029]
[1739186318118,3.77629,2648.1,2647.9,0.07949109]
[1739186318304,3.77629,2648.1,2647.7,11.0836029]
[1739186318506,3.77629,2648.1,2648.0,0.07946479]
[1739186318742,3.77629,2648.1,2647.7,11.0836029]
[1739186318930,0.7972,2648.4,2648.0,0.07946479]
[1739186319262,4.53771,2648.7,2648.2,5.96079287]
[1739186319410,3.77529,2648.8,2648.2,5.96079287]
[1739186319714,3.77529,2648.8,2648.3,0.07942311]
[1739186319919,4.53741,2648.9,2648.3,3.77599]
[1739186320121,3.77531,2648.8,2648.4,0.07939682]
[1739186320731,3.77551,2648.7,2648.4,0.07939682]
[1739186320930,3.77551,2648.7,2648.2,8.01826577]
[1739186321143,0.7622,2647.5,2646.8,2.18466287]
[1739186321345,3.77782,2647.1,2646.7,5.8336029]
[1739186321544,3.77768,2647.2,2646.6,5.8336029]
[1739186321710,3.77768,2647.2,2646.6,0.03777483]
[1739186321911,0.7622,2647.5,2646.6,0.03777483]
[1739186322119,3.77753,2647.3,2646.6,0.03777483]
[1739186322323,3.77775,2647.1,2646.6,0.03777483]
[1739186322507,4.53938,2647.5,2646.4,5.8336029]
[1739186322728,3.77738,2647.4,2646.8,2.18466287]
[1739186322934,3.77738,2647.4,2646.7,3.77818]
[1739186323134,3.77744,2647.3,2646.7,3.77818]
[1739186323848,3.77744,2647.3,2646.7,3.81595335]
[1739186324547,4.53941,2647.5,2646.7,3.81595335]
[1739186324847,4.53941,2647.5,2646.8,2.18466287]
[1739186325147,4.53941,2647.5,2646.9,3.77799]
[1739186325343,3.77721,2647.5,2646.9,3.81576031]
[1739186325543,6.77702,2647.6,2647.0,3.77774]
[1739186327116,6.77702,2647.6,2646.9,9.6115929]
[1739186327117,3.0,2647.6,2646.9,9.6115929]
[1739186327349,3.0,2647.6,2647.1,3.77771]
[1739186328350,6.777,2647.6,2647.1,3.77771]
[1739186328555,6.777,2647.6,2647.2,0.06525441]
[1739186328754,3.77668,2647.9,2647.3,3.7773]
[1739186329047,4.53854,2648.1,2647.4,5.96186287]
[1739186329214,4.53854,2648.1,2647.4,17.04546577]
[1739186329413,4.53854,2648.1,2647.5,0.06517548]
[1739186329613,3.0,2648.0,2647.5,3.84231548]
[1739186330223,6.77654,2648.0,2647.5,0.06517548]
[1739186330433,3.0,2648.0,2647.5,0.06517548]
[1739186330629,3.0,2648.0,2647.5,3.84227548]
[1739186330830,6.77645,2648.0,2647.5,3.84227548]
[1739186331047,3.77658,2647.9,2647.5,0.06517548]
[1739186331436,3.0,2648.0,2647.5,0.06517548]
[1739186331621,6.77653,2648.0,2647.5,0.06517548]
[1739186331819,3.77659,2647.9,2647.5,0.06517548]
[1739186332015,3.0,2648.0,2647.5,3.84231548]
[1739186332253,3.77608,2648.3,2647.5,3.84231548]
[1739186332254,3.77608,2648.3,2647.5,3.88001875]
[1739186332574,4.53806,2648.4,2647.8,3.77666]
[1739186332977,4.53806,2648.4,2647.9,0.06507028]
[1739186333968,3.77601,2648.3,2647.9,0.06507028]
[1739186334718,3.7622,2648.4,2647.9,0.06507028]
[1739186334918,3.77601,2648.3,2647.7,7.59128859]
[1739186335150,3.77601,2648.3,2648.0,0.06504398]
[1739186335328,3.77601,2648.3,2647.7,13.42490221]
[1739186335525,3.77601,2648.3,2648.1,0.06501768]
[1739186335730,7.55209,2648.3,2647.7,9.6103629]
[1739186336053,3.77601,2648.3,2648.2,0.06499139]
[1739186336229,3.77601,2648.3,2647.7,9.6103629]
[1739186336434,3.7622,2648.4,2648.2,0.0652451]
[1739186336629,3.7622,2648.4,2648.0,3.77635]
[1739186336838,3.0,2648.4,2648.3,0.06521881]
[1739186337046,3.0,2648.4,2648.0,3.77635]
[1739186337246,3.0,2648.4,2648.3,0.06521881]
[1739186337449,3.0,2648.4,2648.0,3.77635]
[1739186337948,3.0,2648.4,2648.1,0.0652714]
[1739186338124,3.0,2648.4,2648.0,3.77637]
[1739186338325,3.0,2648.4,2648.2,0.0652451]
[1739186338548,3.0,2648.4,2648.1,3.77625]
[1739186338750,3.0,2648.4,2648.3,0.06521881]
[1739186338932,3.0,2648.4,2648.1,3.77625]
[1739186339137,3.0,2648.4,2648.3,0.06521881]
[1739186339368,3.0,2648.4,2648.1,3.77625]
[1739186339525,3.0,2648.4,2648.3,0.06521881]
[1739186339725,3.0,2648.4,2648.0,3.7764]
[1739186339938,3.0,2648.4,2648.3,0.06521881]
[1739186340137,3.0,2648.4,2648.0,3.7764]
[1739186340336,3.0,2648.4,2648.3,0.06521881]
[1739186340539,3.77506,2649.0,2648.3,0.06521881]
[1739186340540,0.8282,2649.1,2648.7,3.77536]
[1739186340755,6.66186275,2649.3,2648.8,0.03775017]
[1739186340956,10.43655275,2649.3,2648.8,0.06508739]
[1739186341255,10.43655275,2649.3,2648.7,3.77534]
[1739186341256,3.77472,2649.2,2648.7,3.77534]
[1739186341454,3.77472,2649.2,2648.9,0.06506111]
[1739186341653,3.0,2649.2,2648.8,0.06508739]
[1739186341870,2.05900275,2649.3,2649.0,0.06496058]
[1739186342074,2.05900275,2649.3,2648.9,3.84013686]
[1739186342378,2.05900275,2649.3,2649.0,0.06496058]
[1739186344553,5.15306,2649.1,2649.0,0.06496058]
[1739186344738,3.77567,2648.6,2648.1,0.03775405]
[1739186344934,7.55138,2648.6,2648.1,5.8336029]
[1739186345449,3.77587,2648.4,2648.1,5.8336029]
[1739186345774,3.77609,2648.3,2648.1,5.8336029]
[1739186348175,3.7759,2648.4,2648.1,5.8336029]
[1739186348677,4.60399,2648.5,2648.1,5.8336029]
[1739186348842,4.60393,2648.5,2648.1,5.8336029]
[1739186349169,3.77608,2648.3,2648.1,5.8336029]
[1739186349368,3.77644,2648.0,2647.8,11.0836029]
[1739186349568,3.77639,2648.1,2647.8,5.25]
[1739186350448,3.77607,2648.3,2647.8,5.25]
[1739186350961,3.77615,2648.2,2647.8,5.25]
[1739186351360,3.77657,2647.9,2647.8,5.25]
[1739186353150,7.55279,2648.1,2647.8,5.25]
[1739186353348,3.77609,2648.3,2647.8,5.25]
[1739186353558,3.77591,2648.4,2647.9,5.96121287]
[1739186353887,3.77602,2648.3,2647.9,2.18466287]
[1739186354247,3.77602,2648.3,2647.8,5.25]
[1739186354447,3.77615,2648.2,2647.8,5.25]
[1739186354748,3.77631,2648.1,2647.8,5.25]
[1739186355076,3.77631,2648.1,2647.8,11.0836029]
[1739186355643,3.77602,2648.3,2647.8,11.0836029]
[1739186355842,3.77615,2648.2,2647.8,11.0836029]
[1739186356782,3.77631,2648.1,2647.8,11.0836029]
[1739186357578,0.7582,2648.2,2647.8,11.0836029]
[1739186357775,3.77602,2648.3,2647.8,14.8602929]
[1739186357974,7.55211,2648.3,2647.8,14.8602929]
[1739186358175,3.77602,2648.3,2647.8,14.8602929]
[1739186358480,3.77615,2648.2,2647.9,5.8336029]
[1739186358689,3.77631,2648.1,2647.9,5.88980691]
[1739186358855,3.77643,2648.0,2647.9,5.88980691]
[1739186359062,3.77631,2648.1,2647.9,5.88980691]
[1739186359770,3.77643,2648.0,2647.9,5.88980691]
[1739186359986,4.53463,2648.0,2647.9,5.88980691]
[1739186360443,3.77643,2648.0,2647.9,5.88980691]
[1739186364290,3.77643,2648.0,2647.9,0.05620401]
[1739186364657,3.77671,2647.9,2647.4,14.8608529]
[1739186365354,3.77643,2648.0,2647.4,11.0836029]
[1739186365554,3.77643,2648.0,2647.4,14.8607829]
[1739186365754,3.77636,2648.1,2647.5,0.03776437]
[1739186365954,3.77636,2648.1,2647.6,5.96159287]
[1739186366187,3.77618,2648.2,2647.7,3.77685]
[1739186366682,3.77618,2648.2,2647.6,5.96159287]
[1739186366683,3.77591,2648.4,2647.8,3.7766]
[1739186366889,3.77591,2648.4,2647.9,3.77656]
[1739186367294,6.77591,2648.4,2647.9,3.77656]
[1739186367485,3.77591,2648.4,2647.9,3.77656]
[1739186367691,3.77581,2648.5,2647.9,3.77648]
[1739186368055,3.77587,2648.4,2647.9,3.77648]
[1739186369052,3.77586,2648.4,2647.8,3.77671]
[1739186369558,3.77581,2648.5,2647.9,3.77654]
[1739186369763,7.55164,2648.5,2648.0,3.77643]
[1739186369967,3.77581,2648.5,2648.0,3.77643]
[1739186370558,6.7756,2648.6,2648.0,3.77635]
[1739186371589,3.77557,2648.6,2648.0,3.77633]
[1739186371793,3.77557,2648.6,2648.0,7.55269]
[1739186372090,3.77557,2648.6,2648.0,7.55267]
[1739186372389,3.77578,2648.5,2648.0,3.77633]
[1739186373785,3.77558,2648.6,2648.1,0.05667063]
[1739186373989,0.7582,2648.7,2648.2,3.77614]
[1739186374288,3.77536,2648.8,2648.3,3.7759]
[1739186374790,7.53337,2648.9,2648.4,3.77576]
[1739186374791,4.53337,2648.9,2648.4,3.77576]
[1739186375087,4.53337,2648.9,2648.4,3.83195002]
[1739186376090,3.7751,2649.0,2648.4,0.05619002]
[1739186376257,2.05900275,2649.3,2649.0,3.77488]
[1739186376457,2.05900275,2649.3,2649.2,5.95938287]
[1739186376861,0.7582,2649.9,2649.4,3.77435]
[1739186377061,0.7582,2649.9,2649.4,3.77433]
[1739186377388,4.53194,2649.9,2649.5,0.05464673]
[1739186377557,3.0,2649.8,2649.5,0.05464673]
[1739186377762,3.0,2649.8,2649.5,3.82893673]
[1739186378163,4.53164,2650.1,2649.5,3.82893673]
[1739186378366,0.7582,2650.1,2649.6,3.77409]
[1739186378694,3.7582,2650.1,2649.7,0.0545942]
[1739186379256,7.53167,2650.1,2649.7,0.0545942]
[1739186379673,7.53167,2650.1,2649.5,3.77429]
[1739186379887,3.7582,2650.1,2649.8,0.05411105]
[1739186380101,3.7582,2650.1,2649.5,7.54848]
[1739186380302,3.7582,2650.1,2649.9,0.05408479]
[1739186380483,3.7582,2650.1,2649.5,3.77419]
[1739186380680,3.7582,2650.1,2650.0,0.05405853]
[1739186381064,3.7582,2650.1,2649.6,3.77411]
[1739186381265,3.7582,2650.1,2650.0,0.05405853]
[1739186381770,3.7582,2650.1,2649.6,3.77411]
[1739186381981,7.53167,2650.1,2649.7,0.05413731]
[1739186382872,7.53167,2650.1,2649.8,2.18466287]
[1739186383314,7.53167,2650.1,2649.9,0.05408479]
[1739186384595,3.7731,2650.4,2649.9,3.82780479]
[1739186384796,4.55402,2650.6,2650.2,2.18466287]
[1739186384996,3.77282,2650.6,2650.3,0.05395508]
[1739186385201,3.77282,2650.6,2650.2,2.18466287]
[1739186385377,3.77282,2650.6,2650.4,0.05392883]
[1739186385573,4.55374,2650.8,2650.2,2.18466287]
[1739186385778,3.77206,2651.1,2650.5,6.01138546]
[1739186385983,3.77206,2651.1,2650.9,2.18466287]
[1739186386182,3.0,2651.0,2650.9,2.18466287]
[1739186386376,4.55313,2651.2,2651.0,0.05350602]
[1739186386577,3.77162,2651.4,2650.9,2.18466287]
[1739186386578,3.77162,2651.4,2650.9,2.23819513]
[1739186386785,3.77162,2651.4,2651.2,2.18466287]
[1739186386974,3.77162,2651.4,2651.3,0.05319905]
[1739186387174,3.77162,2651.4,2651.2,2.18466287]
[1739186387411,3.77162,2651.4,2651.3,0.05219918]
[1739186387606,2.34115134,2651.8,2651.2,5.95649287]
[1739186387781,2.34115134,2651.8,2651.7,2.18466287]
[1739186387782,3.12235134,2651.8,2651.7,2.18466287]
[1739186387968,4.55222,2651.8,2651.7,2.23675714]
[1739186388169,7.55222,2651.8,2651.7,0.05209427]
[1739186388373,3.77131,2651.6,2651.4,2.18466287]
[1739186388578,3.77116,2651.7,2651.5,0.05214672]
[1739186388774,3.77116,2651.7,2651.1,2.18466287]
[1739186389069,3.77147,2651.5,2651.2,0.05188005]
[1739186390105,3.77116,2651.7,2651.2,0.05188005]
[1739186390308,3.77133,2651.6,2651.2,0.05188005]
[1739186390512,3.77116,2651.7,2651.4,2.18466287]
[1739186390910,7.54244,2651.7,2651.5,0.0517582]
[1739186391315,8.1025,2651.6,2651.5,0.0517582]
[1739186391812,3.77178,2651.3,2651.1,2.18466287]
[1739186392416,3.0,2651.4,2651.1,2.18466287]
[1739186392617,6.77167,2651.4,2651.1,2.18466287]
[1739186394996,3.0,2651.4,2651.1,2.18466287]
[1739186395392,3.77187,2651.2,2651.1,2.18466287]
[1739186396600,3.77187,2651.2,2650.7,3.77257]
[1739186396601,3.77217,2651.0,2650.8,2.18466287]
[1739186396916,3.77258,2650.7,2650.5,2.18466287]
[1739186397684,3.77233,2650.9,2650.5,2.18466287]
[1739186397912,3.77254,2650.8,2650.5,2.18466287]
[1739186398082,4.55009,2651.1,2650.5,5.95745287]
[1739186398289,3.0,2650.9,2650.5,2.18466287]
[1739186398591,3.0,2650.9,2650.5,5.95748287]
[1739186399520,3.0,2650.9,2650.5,2.18466287]
[1739186400020,6.77241,2650.9,2650.5,2.18466287]
[1739186400226,3.77249,2650.8,2650.5,2.18466287]
[1739186400909,3.77273,2650.6,2650.2,2.18466287]
[1739186401299,3.77297,2650.5,2650.2,2.18466287]
[1739186401502,3.77312,2650.4,2650.2,2.18466287]
[1739186401820,4.55075,2650.6,2650.2,2.18466287]
[1739186402011,3.77275,2650.6,2650.2,2.18466287]
[1739186402325,3.0,2650.7,2650.5,2.18466287]
[1739186402725,0.778,2650.9,2650.5,2.18466287]
[1739186402912,3.77223,2651.0,2650.5,5.95747287]
[1739186403288,3.0,2650.9,2650.5,2.18466287]
[1739186403491,3.77244,2650.8,2650.5,2.18466287]
[1739186403692,3.77267,2650.7,2650.6,0.05220398]
[1739186403894,5.10067,2650.7,2650.6,0.05220398]
[1739186404327,3.77276,2650.6,2650.2,2.18466287]
[1739186404499,3.77244,2650.8,2650.2,5.95783287]
[1739186404709,7.54502,2650.8,2650.2,5.95783287]
[1739186404903,3.77244,2650.8,2650.2,5.95783287]
[1739186405222,3.77177,2651.3,2650.7,3.77249]
[1739186405422,3.77196,2651.2,2650.8,2.18466287]
[1739186405621,3.77208,2651.1,2650.8,2.18466287]
[1739186406522,3.0,2651.1,2650.8,2.18466287]
[1739186407032,6.77215,2651.1,2650.8,2.18466287]
[1739186407233,0.7665,2651.4,2650.8,2.18466287]
[1739186407234,3.77218,2651.0,2650.8,2.18466287]
[1739186407392,3.7723,2650.9,2650.8,2.18466287]
[1739186408625,4.32244,2650.8,2650.7,5.25]
[1739186408831,3.77273,2650.6,2650.5,2.18466287]
[1739186409007,3.77259,2650.7,2650.5,2.18466287]
[1739186409331,3.77273,2650.6,2650.5,2.18466287]
[1739186409531,3.77254,2650.8,2650.5,2.18466287]
[1739186409708,3.77268,2650.7,2650.5,2.18466287]
[1739186410446,3.0,2651.0,2650.5,2.18466287]
[1739186410447,4.3165,2651.1,2650.5,2.18466287]
[1739186410601,3.77252,2650.8,2650.5,2.18466287]
[1739186410920,3.0,2650.9,2650.5,5.95742287]
[1739186411232,3.0,2650.9,2650.5,2.18466287]
[1739186411233,6.77241,2650.9,2650.5,2.18466287]
[1739186411800,3.77226,2651.0,2650.5,5.95745287]
[1739186412232,3.0,2650.9,2650.5,5.95745287]
[1739186412896,3.77195,2651.2,2650.8,2.18466287]
[1739186413138,4.55116,2651.4,2650.8,5.95707287]
[1739186413446,4.55116,2651.4,2651.1,2.18466287]
[1739186413660,3.77166,2651.4,2651.1,2.18466287]
[1739186413943,7.54337,2651.4,2651.1,2.18466287]
[1739186414239,3.0,2651.3,2651.1,2.18466287]
[1739186414607,6.77174,2651.3,2651.1,2.18466287]
[1739186414842,3.0,2651.3,2651.1,2.18466287]
[1739186415236,3.77156,2651.5,2651.1,2.18466287]
[1739186416255,3.77078,2652.0,2650.8,3.77235]
[1739186416256,0.7795,2651.8,2651.4,2.18466287]
[1739186416455,4.5506,2651.8,2651.4,2.18466287]
[1739186416657,3.77097,2651.9,2651.4,2.18466287]
[1739186416815,3.7708,2652.0,2651.4,2.18466287]
[1739186417015,3.77103,2651.8,2651.4,2.18466287]
[1739186417442,3.0,2651.9,2651.4,2.18466287]
[1739186417624,3.0,2651.9,2651.4,5.95616287]
[1739186417834,3.77091,2651.9,2651.4,5.95616287]
[1739186418629,3.77091,2651.9,2651.5,0.05167833]
[1739186419645,3.77082,2652.0,2651.5,0.05167833]
[1739186419818,3.77102,2651.8,2651.5,0.05167833]
[1739186420219,6.77089,2651.9,2651.5,0.05167833]
[1739186422622,3.0,2651.9,2651.5,0.05167833]
[1739186422850,3.77104,2651.8,2651.5,0.05167833]
[1739186423622,3.0,2651.9,2651.5,0.05167833]
[1739186423821,6.77088,2651.9,2651.5,0.05167833]
[1739186425960,3.0,2651.9,2651.5,0.05167833]
[1739186426118,3.77106,2651.8,2651.5,0.05167833]
[1739186426322,6.7709,2651.9,2651.5,0.05167833]
[1739186427237,3.77107,2651.8,2651.5,0.05167833]
[1739186427441,6.7709,2651.9,2651.5,0.05167833]
[1739186427647,3.0,2651.9,2651.5,0.05167833]
[1739186427954,3.77105,2651.8,2651.5,0.05167833]
[1739186428458,0.7795,2652.1,2651.5,0.05167833]
[1739186428459,3.7713,2651.6,2651.5,0.05167833]
[1739186428650,5.0886,2651.6,2651.5,0.05167833]
[1739186428833,3.77155,2651.5,2651.1,2.18466287]
[1739186429040,3.77155,2651.5,2651.2,0.05142405]
[1739186429856,3.77159,2651.4,2651.2,0.05142405]
[1739186430267,3.77173,2651.3,2651.2,0.05142405]
[1739186430652,3.77173,2651.3,2651.0,5.25]
[1739186430839,3.77173,2651.3,2651.1,0.05144412]
[1739186432439,3.77187,2651.2,2651.1,0.09358715]
[1739186433269,7.54331,2651.4,2651.1,0.09358715]
[1739186433829,3.77159,2651.4,2651.1,0.09358715]
[1739186434030,3.77173,2651.3,2651.1,0.09358715]
[1739186434231,3.77159,2651.4,2651.1,0.09358715]
[1739186434633,3.77175,2651.3,2651.1,0.09358715]
[1739186434828,0.55,2651.3,2651.1,0.09358715]
[1739186435035,8.09877,2651.2,2651.1,0.09358715]
[1739186435265,8.09877,2651.2,2650.5,2.18466287]
[1739186435266,3.55,2651.1,2650.5,2.18466287]
[1739186435561,3.77255,2650.8,2650.6,0.09065821]
[1739186436358,3.77258,2650.7,2650.6,0.09065821]
[1739186439840,6.77254,2650.8,2650.6,0.09065821]
[1739186440681,5.29163656,2651.2,2650.6,0.09065821]
[1739186440682,3.77258,2650.7,2650.6,0.09065821]
[1739186441750,7.32258,2650.7,2650.6,0.09065821]
[1739186442265,3.77284,2650.6,2650.2,2.18466287]
[1739186442472,3.77273,2650.6,2650.3,0.08813217]
[1739186442645,3.77287,2650.5,2650.2,2.18466287]
[1739186442843,3.77287,2650.5,2650.3,0.08493137]
[1739186443050,11.09527,2650.7,2650.2,2.18466287]
[1739186443254,3.77258,2650.7,2650.5,2.18466287]
[1739186443460,3.77258,2650.7,2650.6,0.08484785]
[1739186443682,6.77258,2650.7,2650.6,0.08484785]
[1739186444488,3.77273,2650.6,2650.5,2.18466287]
[1739186444676,3.77273,2650.6,2650.5,2.26953856]
[1739186445393,6.77258,2650.7,2650.5,2.26953856]
[1739186445999,3.77273,2650.6,2650.5,2.26953856]
[1739186446180,6.77258,2650.7,2650.5,2.26953856]
[1739186447328,3.77207,2651.1,2650.5,2.26953856]
[1739186447489,3.7719,2651.2,2650.8,2.18466287]
[1739186447691,3.0,2651.2,2650.9,0.08480122]
[1739186447891,4.53614,2651.5,2651.1,2.18466287]
[1739186448101,3.7716,2651.4,2651.2,0.08471774]
[1739186448810,3.77154,2651.5,2651.2,0.08471774]
[1739186449108,3.0,2651.4,2651.2,0.08471774]
[1739186449292,3.77154,2651.5,2651.2,0.08471774]
[1739186449902,3.0,2651.4,2651.2,0.08471774]
[1739186450283,3.77139,2651.6,2651.2,0.08471774]
[1739186450611,3.77129,2651.7,2651.4,2.18466287]
[1739186451104,3.77097,2651.9,2651.5,0.08429028]
[1739186451310,3.77104,2651.8,2651.5,0.08429028]
[1739186452108,3.77097,2651.9,2651.5,0.08429028]
[1739186452274,3.77097,2651.9,2651.7,2.18466287]
[1739186452475,3.77097,2651.9,2651.8,0.08420684]
[1739186452675,3.77097,2651.9,2651.7,2.18466287]
[1739186452908,3.77097,2651.9,2651.8,0.08420684]
[1739186453103,3.77097,2651.9,2651.7,2.18466287]
[1739186453307,3.77097,2651.9,2651.8,0.08420684]
[1739186453487,3.77097,2651.9,2651.7,2.18466287]
[1739186453675,3.77097,2651.9,2651.8,0.08420684]
[1739186453870,3.77139,2651.6,2651.4,2.18466287]
[1739186454070,3.77139,2651.6,2651.5,0.08429028]
[1739186454836,3.7712,2651.7,2651.5,0.08429028]
[1739186455600,3.55,2651.9,2651.5,0.08429028]
[1739186455899,7.5715,2651.6,2651.5,0.08429028]
[1739186456209,3.77159,2651.4,2651.3,5.25]
[1739186456410,3.77159,2651.4,2651.1,2.18466287]
[1739186456586,4.5715,2651.6,2651.1,2.18466287]
[1739186457212,0.8002,2651.6,2651.1,2.18466287]
[1739186457507,3.77168,2651.4,2651.1,2.18466287]
[1739186458208,3.7718,2651.3,2651.1,2.18466287]
[1739186458507,3.77168,2651.4,2651.1,2.18466287]
[1739186458705,3.77182,2651.3,2651.1,2.18466287]
[1739186460210,3.77187,2651.2,2651.1,2.18466287]
[1739186460510,3.77182,2651.3,2651.1,2.18466287]
[1739186462009,7.54363,2651.3,2651.1,2.18466287]
[1739186462235,3.77181,2651.3,2651.1,2.18466287]
[1739186463573,7.54362,2651.3,2651.1,2.18466287]
[1739186463780,3.77181,2651.3,2651.2,0.08380253]
[1739186465591,3.7716,2651.4,2651.2,0.08380253]
[1739186466417,3.77173,2651.3,2651.2,0.08380253]
[1739186467609,3.7716,2651.4,2651.2,0.08380253]
[1739186467809,3.0,2651.5,2651.2,0.08380253]
[1739186468520,3.77145,2651.5,2651.4,2.18466287]
[1739186468681,3.0,2651.5,2651.4,2.26868611]
[1739186469103,6.77145,2651.5,2651.4,2.26868611]
[1739186469520,6.77145,2651.5,2651.4,0.08402324]
[1739186469725,6.77145,2651.5,2651.1,2.18466287]
[1739186469907,6.77145,2651.5,2651.2,0.08407888]
[1739186470281,3.7716,2651.4,2651.2,0.08407888]
[1739186471104,3.0,2651.5,2651.2,5.33407888]
[1739186471915,3.0,2651.7,2651.4,2.18466287]
[1739186472139,3.77095,2651.9,2651.5,0.08399542]
[1739186472424,4.53952,2652.0,2651.7,2.18466287]
[1739186472425,3.7708,2652.0,2651.7,2.18466287]
[1739186472619,3.0,2651.9,2651.7,2.18466287]
[1739186472789,3.0,2651.9,2651.8,0.08375232]
[1739186473194,3.55,2652.2,2651.7,2.18466287]
[1739186473389,8.08958,2651.9,2651.8,0.08375232]
[1739186473798,6.77116,2651.7,2651.6,5.25]
[1739186474101,3.55,2651.7,2651.1,2.18466287]
[1739186474303,3.77186,2651.3,2651.1,2.18466287]
[1739186475794,3.77187,2651.2,2651.1,2.18466287]
[1739186476112,3.77186,2651.3,2651.1,2.18466287]
[1739186476113,3.77182,2651.3,2651.1,2.18466287]
[1739186476499,3.77187,2651.2,2651.1,2.18466287]
[1739186477585,3.77216,2651.0,2650.5,2.18466287]
[1739186477786,3.77273,2650.6,2650.5,2.18466287]
[1739186478017,3.77299,2650.5,2650.2,7.43466287]
[1739186478818,3.77299,2650.5,2650.3,0.0812615]
[1739186479325,3.77299,2650.5,2650.4,0.08123366]
[1739186479528,3.77299,2650.5,2650.2,7.43466287]
[1739186479733,3.77301,2650.4,2650.3,0.0812615]
[1739186479924,3.77287,2650.5,2650.2,7.43466287]
[1739186480131,3.77344,2650.1,2650.0,5.25]
[1739186481331,6.77303,2650.4,2650.0,5.25]
[1739186481633,3.7731,2650.4,2650.2,2.18466287]
[1739186482130,3.77344,2650.1,2650.0,5.25]
[1739186482306,4.54214,2650.1,2650.0,5.25]
[1739186482512,3.77401,2649.7,2649.6,2.18466287]
[1739186482926,3.77401,2649.7,2649.5,5.25]
[1739186483231,3.77415,2649.6,2649.5,5.25]
[1739186483811,3.77401,2649.7,2649.5,5.25]
[1739186484915,3.77401,2649.7,2649.6,2.18466287]
[1739186486839,3.77415,2649.6,2649.5,5.25]
[1739186487234,3.77443,2649.4,2649.3,2.18466287]
[1739186487751,3.77429,2649.5,2649.3,2.18466287]
[1739186487948,3.0,2649.6,2649.3,2.18466287]
[1739186488254,6.77419,2649.6,2649.3,2.18466287]
[1739186488543,3.77408,2649.7,2649.3,2.18466287]
[1739186488704,10.54821,2649.7,2649.6,2.18466287]
[1739186489816,3.0,2649.7,2649.6,2.18466287]
[1739186490342,3.77386,2649.9,2649.6,2.18466287]
[1739186490801,7.54771,2649.9,2649.6,2.18466287]
[1739186491006,3.77385,2649.9,2649.6,2.18466287]
[1739186491208,0.55,2650.1,2649.6,2.18466287]
[1739186491446,4.54271,2649.7,2649.6,2.18466287]
[1739186492113,3.77401,2649.7,2649.6,2.18466287]
[1739186493727,3.77401,2649.7,2649.6,2.26702092]
[1739186495449,7.32401,2649.7,2649.6,0.08235805]
[1739186495626,8.09271,2649.7,2649.6,0.08235805]
[1739186495948,3.77443,2649.4,2649.3,2.18466287]
[1739186501673,3.77431,2649.5,2649.3,2.18466287]